fUSD/lending_fUSD_20251221
["ID","MTS","AMOUNT","RATE_DAILY","PERIOD"]
[399321813,1766301022582,-225.25,0.00012746,2]
[399321814,1766301022606,-500.0,0.00012751,2]
[399321815,1766301022630,-216.26545234,0.00012751,2]
[399321816,1766301022657,-500.0,0.00012751,2]
[399321817,1766301022683,-254.51338693,0.00012751,2]
[399321818,1766301022717,-37726.4191855,0.00012752,2]
[399321821,1766301031993,-2738.33598373,0.00012752,2]
[399321822,1766301032128,-77175.6497318,0.00012752,2]
[399321823,1766301032139,-250.0,0.00012752,2]
[399321824,1766301032154,-4041.15047749,0.00012752,2]
[399321825,1766301032200,-2082.37526384,0.00012752,2]
[399321826,1766301032212,-776.28283243,0.00012752,2]
[399321827,1766301032224,-555.66208952,0.00012752,2]
[399321828,1766301032237,-3566.42502875,0.00012752,2]
[399321829,1766301032262,-91808.46396327,0.00012752,2]
[399321831,1766301032274,-42587.43728449,0.00012752,2]
[399321834,1766301038101,-500.0,0.00012751,2]
[399321835,1766301038110,-1466.54436356,0.00012752,2]
[399321836,1766301038122,-429875.0,0.00012752,2]
[399321837,1766301038133,-4000.0,0.00012752,2]
[399321838,1766301038159,-1563.61745328,0.00012752,2]
[399321839,1766301038170,-696.74,0.00012752,2]
[399321840,1766301038181,-20960.59918484,0.00012752,2]
[399321841,1766301038192,-941.66862379,0.00012752,2]
[399321842,1766301038221,-3730.39045448,0.00012752,2]
[399321851,1766301040166,-463.67418489,0.00012752,2]
[399321852,1766301040177,-3336.62340853,0.00012752,2]
[399321853,1766301040190,-441.06,0.00012752,2]
[399321854,1766301040201,-481.57727047,0.00012752,2]
[399321855,1766301040235,-1690.66002,0.00012752,2]
[399321856,1766301040250,-918.085566,0.00012752,2]
[399321857,1766301040263,-405.28705655,0.00012752,2]
[399321858,1766301040295,-788.50317115,0.00012752,2]
[399321859,1766301040467,-429.59999994,0.00012752,2]
[399321860,1766301040583,-60701.80358013,0.00012752,2]
[399321867,1766301043117,-4481.67,0.00012752,2]
[399321868,1766301043419,-18567.30510276,0.00012752,2]
[399321872,1766301046256,-172837.02035859,0.00012752,2]
[399321873,1766301046498,-7541.16822027,0.00012752,2]
[399321874,1766301046514,-373.20013995,0.00012752,2]
[399321875,1766301046527,-203.0,0.00012767,2]
[399321876,1766301046540,-689.04,0.00012777,2]
[399321877,1766301046554,-151.0,0.00012777,2]
[399321878,1766301046567,-578.20924308,0.00012777,2]
[399321879,1766301046580,-5.55061697,0.00012777,2]
[399322018,1766302233758,-160.35,0.00012019,2]
[399322019,1766302233768,-248.0,0.00012019,2]
[399322020,1766302233783,-71.23345571,0.00012079,2]
[399322021,1766302233794,-178.76654429,0.00012079,2]
[399322022,1766302233804,-166.66,0.00012139,2]
[399322023,1766302233814,-89.15069233,0.00012173,2]
[399322024,1766302233827,-160.84930767,0.00012173,2]
[399322025,1766302233837,-4302.64,0.00012186,2]
[399322026,1766302233847,-370.59514655,0.00012337,2]
[399322027,1766302233857,-300.0,0.00012503,2]
[399322028,1766302233867,-300.0,0.00012503,2]
[399322029,1766302233876,-1200.0,0.00012503,2]
[399322030,1766302233886,-630.387,0.00012505,2]
[399322031,1766302233897,-151.011691,0.00012505,2]
[399322032,1766302233908,-2105.55338744,0.00012506,2]
[399322033,1766302233918,-6789.45846734,0.00012506,2]
[399322034,1766302233933,-887.52956503,0.00012506,2]
[399322035,1766302233953,-867.26202952,0.00012506,2]
[399322036,1766302233966,-349.17285286,0.00012506,2]
[399322037,1766302233979,-837.13412801,0.00012506,2]
[399322038,1766302233990,-932.78264644,0.00012506,2]
[399322039,1766302234008,-436.60011272,0.00012506,2]
[399322040,1766302234024,-8043.02607799,0.00012506,2]
[399322041,1766302234034,-150.0,0.00012512,2]
[399322042,1766302234044,-166.66,0.0001254,2]
[399322043,1766302234054,-197.05869145,0.00012603,2]
[399322044,1766302234063,-150.0,0.00012604,2]
[399322045,1766302234074,-803.88,0.00012606,2]
[399322046,1766302234085,-151.0,0.00012606,2]
[399322047,1766302234096,-250.0,0.00012606,2]
[399322048,1766302234105,-151.0,0.00012606,2]
[399322049,1766302234115,-553.64373807,0.00012606,2]
[399322050,1766302234125,-500.0,0.00012606,2]
[399322051,1766302234135,-250.0,0.00012606,2]
[399322052,1766302234146,-721.12765535,0.00012606,2]
[399322053,1766302234161,-500.0,0.00012606,2]
[399322054,1766302234171,-250.0,0.00012606,2]
[399322055,1766302234181,-514.74329666,0.00012606,2]
[399322056,1766302234191,-261.07194788,0.00012606,2]
[399322057,1766302234201,-578.20924308,0.00012606,2]
[399322058,1766302234211,-2000.0,0.00012606,2]
[399322059,1766302234221,-201.93286099,0.00012606,2]
[399322060,1766302234231,-2000.0,0.00012606,2]
[399322061,1766302234241,-1000.0,0.00012606,2]
[399322062,1766302234251,-2000.0,0.00012606,2]
[399322063,1766302234261,-1000.0,0.00012606,2]
[399322064,1766302234271,-2000.0,0.00012606,2]
[399322065,1766302234280,-1000.0,0.00012606,2]
[399322066,1766302234290,-500.0,0.00012606,2]
[399322067,1766302234300,-2000.0,0.00012606,2]
[399322068,1766302234310,-1000.0,0.00012606,2]
[399322069,1766302234320,-500.0,0.00012606,2]
[399322070,1766302234329,-2000.0,0.00012606,2]
[399322071,1766302234339,-1000.0,0.00012606,2]
[399322072,1766302234348,-500.0,0.00012606,2]
[399322073,1766302234358,-174.86250062,0.00012606,2]
[399322074,1766302234370,-1879.4006774,0.00012606,2]
[399322075,1766302234380,-1000.0,0.00012606,2]
[399322076,1766302234389,-500.0,0.00012606,2]
[399322077,1766302234399,-200.0,0.00012606,2]
[399322078,1766302234409,-614.75428362,0.00012606,2]
[399322079,1766302234418,-207.4,0.00012606,2]
[399322080,1766302234428,-215.0738,0.00012606,2]
[399322081,1766302234438,-223.0315306,0.00012606,2]
[399322082,1766302234447,-548.92065365,0.00012606,2]
[399322083,1766302234457,-231.28369723,0.00012606,2]
[399322084,1766302234466,-239.84119403,0.00012606,2]
[399322085,1766302234475,-248.71531821,0.00012606,2]
[399322086,1766302234485,-500.0,0.00012606,2]
[399322087,1766302234494,-257.91778498,0.00012606,2]
[399322088,1766302234504,-500.0,0.00012606,2]
[399322089,1766302234514,-267.46074303,0.00012606,2]
[399322090,1766302234523,-500.0,0.00012606,2]
[399322091,1766302234533,-250.0,0.00012606,2]
[399322092,1766302234542,-500.0,0.00012606,2]
[399322093,1766302234551,-1000.0,0.00012606,2]
[399322094,1766302234561,-250.0,0.00012606,2]
[399322095,1766302234571,-1000.0,0.00012606,2]
[399322096,1766302234580,-500.0,0.00012606,2]
[399322097,1766302234589,-151.0,0.00012606,2]
[399322098,1766302234599,-250.0,0.00012606,2]
[399322099,1766302234609,-1000.0,0.00012606,2]
[399322100,1766302234618,-500.0,0.00012606,2]
[399322101,1766302234628,-250.0,0.00012606,2]
[399322102,1766302234637,-500.0,0.00012606,2]
[399322103,1766302234648,-2349.0,0.00012606,2]
[399322104,1766302234658,-1000.0,0.00012606,2]
[399322105,1766302234669,-500.0,0.00012606,2]
[399322106,1766302234679,-250.0,0.00012606,2]
[399322107,1766302234691,-500.0,0.00012606,2]
[399322108,1766302234702,-1000.0,0.00012606,2]
[399322109,1766302234712,-500.0,0.00012606,2]
[399322110,1766302234724,-250.0,0.00012606,2]
[399322111,1766302234738,-500.0,0.00012606,2]
[399322112,1766302234749,-500.0,0.00012606,2]
[399322113,1766302234759,-1000.0,0.00012606,2]
[399322114,1766302234770,-1000.0,0.00012606,2]
[399322115,1766302234781,-250.0,0.00012606,2]
[399322116,1766302234791,-500.0,0.00012606,2]
[399322117,1766302234803,-500.0,0.00012606,2]
[399322118,1766302234814,-1000.0,0.00012606,2]
[399322119,1766302234824,-1000.0,0.00012606,2]
[399322120,1766302234834,-250.0,0.00012606,2]
[399322121,1766302234844,-1000.0,0.00012606,2]
[399322122,1766302234854,-500.0,0.00012606,2]
[399322123,1766302234864,-500.0,0.00012606,2]
[399322124,1766302234874,-250.0,0.00012606,2]
[399322125,1766302234883,-1000.0,0.00012606,2]
[399322126,1766302234894,-500.0,0.00012606,2]
[399322127,1766302234904,-250.0,0.00012606,2]
[399322128,1766302234916,-1000.0,0.00012606,2]
[399322129,1766302234925,-250.0,0.00012606,2]
[399322130,1766302234934,-1000.0,0.00012606,2]
[399322131,1766302234943,-257.16215838,0.00012606,2]
[399322132,1766302234953,-1000.0,0.00012606,2]
[399322133,1766302234962,-500.0,0.00012606,2]
[399322134,1766302234972,-620.0,0.00012606,2]
[399322135,1766302234982,-151.0,0.00012606,2]
[399322136,1766302234993,-300.0,0.00012606,2]
[399322137,1766302235003,-432.37231553,0.00012606,2]
[399322138,1766302235013,-150.0,0.00012649,2]
[399322139,1766302235024,-1000.0,0.00012652,2]
[399322140,1766302235035,-200.0,0.00012675,2]
[399322141,1766302235045,-1837.98676341,0.00012694,2]
[399322142,1766302235056,-1059.0,0.00012701,2]
[399322143,1766302235066,-772.7573437,0.00012725,2]
[399322144,1766302235076,-1446.0,0.00012727,2]
[399322145,1766302235086,-11192.2152574,0.00012752,2]
[399322146,1766302235095,-39539.47823571,0.00012752,2]
[399322147,1766302235108,-453.95773948,0.00012752,2]
[399322151,1766302238295,-500.0,0.00012751,2]
[399322152,1766302238306,-43.57890316,0.00012751,2]
[399322154,1766302238318,-137.13095427,0.00012751,2]
[399322155,1766302238328,-156.96262163,0.00012751,2]
[399322156,1766302238339,-500.0,0.00012751,2]
[399322157,1766302238348,-162076.97713381,0.00012752,2]
[399322158,1766302238358,-6397.9590015,0.00012752,2]
[399322159,1766302238367,-5230.7077549,0.00012752,2]
[399322160,1766302238377,-2571.1504395,0.00012752,2]
[399322161,1766302238386,-549.74315086,0.00012764,2]
[399322162,1766302238397,-200.0,0.00012777,2]
[399322163,1766302238407,-250.0,0.00012786,2]
[399322164,1766302238417,-151.0,0.00012853,2]
[399322165,1766302238427,-223.48013369,0.00012853,2]
[399322166,1766302238437,-803.88,0.0001288,2]
[399322167,1766302238447,-78275.91021825,0.000129,2]
[399322168,1766302238456,-44870.96035133,0.000129,2]
[399322169,1766302238466,-157865.99453498,0.000129,2]
[399322170,1766302238475,-152.067628,0.000129,2]
[399322171,1766302238485,-151.0,0.000129,2]
[399322172,1766302238495,-151.0,0.000129,2]
[399322173,1766302238504,-217.015063,0.000129,2]
[399322174,1766302238514,-151.0,0.000129,2]
[399322175,1766302238524,-151.0,0.000129,2]
[399322176,1766302238533,-151.0,0.000129,2]
[399322177,1766302238543,-151.0,0.000129,2]
[399322178,1766302238553,-151.0,0.000129,2]
[399322179,1766302238562,-503.548566,0.000129,2]
[399322180,1766302238572,-503.548566,0.000129,2]
[399322181,1766302238581,-503.548566,0.000129,2]
[399322182,1766302238591,-503.548566,0.000129,2]
[399322183,1766302238600,-503.548566,0.000129,2]
[399322184,1766302238611,-503.548566,0.000129,2]
[399322185,1766302238620,-503.548566,0.000129,2]
[399322186,1766302238630,-503.548566,0.000129,2]
[399322187,1766302238639,-508.949884,0.000129,2]
[399322188,1766302238648,-508.949884,0.000129,2]
[399322189,1766302238658,-508.949884,0.000129,2]
[399322190,1766302238668,-508.949884,0.000129,2]
[399322191,1766302238678,-508.949884,0.000129,2]
[399322192,1766302238687,-508.949884,0.000129,2]
[399322193,1766302238698,-508.949884,0.000129,2]
[399322194,1766302238707,-508.949884,0.000129,2]
[399322195,1766302238716,-151.0,0.000129,2]
[399322196,1766302238725,-151.0,0.000129,2]
[399322197,1766302238739,-151.0,0.000129,2]
[399322198,1766302238749,-986.0130956,0.00012912,2]
[399322199,1766302238759,-7995.0,0.00012913,2]
[399322200,1766302238768,-166.66,0.0001294,2]
[399322201,1766302238778,-3834.65811313,0.00012951,2]
[399322202,1766302238787,-182.1006497,0.0001299,2]
[399322203,1766302238796,-19142.96587987,0.00012994,2]
[399322205,1766302238807,-164.0,0.00012996,2]
[399322207,1766302238816,-7000.0,0.00013047,2]
[399322209,1766302238826,-1000.0,0.00013047,2]
[399322211,1766302238835,-1000.0,0.00013047,2]
[399322213,1766302238844,-1000.0,0.00013047,2]
[399322215,1766302238854,-1000.0,0.00013047,2]
[399322216,1766302238863,-1000.0,0.00013047,2]
[399322217,1766302238872,-1000.0,0.00013047,2]
[399322219,1766302238882,-1000.0,0.00013047,2]
[399322221,1766302238891,-1000.0,0.00013047,2]
[399322223,1766302238901,-1000.0,0.00013047,2]
[399322225,1766302238910,-1000.0,0.00013047,2]
[399322226,1766302238919,-1000.0,0.00013047,2]
[399322227,1766302238928,-1000.0,0.00013047,2]
[399322228,1766302238937,-1000.0,0.00013047,2]
[399322229,1766302238947,-1000.0,0.00013047,2]
[399322231,1766302238957,-1000.0,0.00013047,2]
[399322233,1766302238967,-1000.0,0.00013047,2]
[399322234,1766302239329,-1000.0,0.00013047,2]
[399322235,1766302239339,-1000.0,0.00013047,2]
[399322236,1766302239348,-1000.0,0.00013047,2]
[399322237,1766302239357,-1000.0,0.00013047,2]
[399322238,1766302239367,-1000.0,0.00013047,2]
[399322239,1766302239378,-1000.0,0.00013047,2]
[399322240,1766302239389,-1000.0,0.00013047,2]
[399322241,1766302239399,-1000.0,0.00013047,2]
[399322242,1766302239410,-1000.0,0.00013047,2]
[399322243,1766302239420,-1000.0,0.00013047,2]
[399322244,1766302239430,-1000.0,0.00013047,2]
[399322245,1766302239439,-1036.30235592,0.00013047,2]
[399322246,1766302239448,-186.129619,0.00013047,2]
[399322247,1766302239457,-151.0,0.00013047,2]
[399322248,1766302239466,-503.548566,0.00013047,2]
[399322249,1766302239475,-503.548566,0.00013047,2]
[399322250,1766302239484,-503.548566,0.00013047,2]
[399322251,1766302239493,-503.548566,0.00013047,2]
[399322252,1766302239501,-508.949884,0.00013047,2]
[399322253,1766302239511,-508.949884,0.00013047,2]
[399322254,1766302239519,-508.949884,0.00013047,2]
[399322255,1766302239529,-508.949884,0.00013047,2]
[399322256,1766302239538,-151.0,0.00013047,2]
[399322257,1766302239547,-176.7,0.00013134,2]
[399322258,1766302239556,-173.27,0.00013134,2]
[399322259,1766302239565,-803.88,0.00013154,2]
[399322260,1766302239574,-151.0,0.00013154,2]
[399322261,1766302239584,-151.0,0.00013154,2]
[399322262,1766302239593,-574.12855637,0.00013154,2]
[399322263,1766302239603,-209.40437684,0.00013154,2]
[399322264,1766302239612,-161.14216565,0.00013154,2]
[399322265,1766302239621,-195.0,0.00013221,2]
[399322266,1766302239631,-250.0,0.00013221,2]
[399322267,1766302239640,-500.0,0.00013273,2]
[399322268,1766302239649,-500.0,0.00013273,2]
[399322269,1766302239659,-500.0,0.00013273,2]
[399322270,1766302239667,-500.0,0.00013273,2]
[399322271,1766302239677,-500.0,0.00013273,2]
[399322272,1766302239686,-500.0,0.00013273,2]
[399322273,1766302239695,-500.0,0.00013273,2]
[399322274,1766302239704,-500.0,0.00013273,2]
[399322275,1766302239713,-500.0,0.00013273,2]
[399322276,1766302239722,-500.0,0.00013273,2]
[399322277,1766302239733,-166.66,0.00013341,2]
[399322278,1766302239745,-1884.0,0.0001341,2]
[399322279,1766302239754,-803.88,0.00013428,2]
[399322280,1766302239763,-1026.5,0.00013461,2]
[399322281,1766302239774,-1884.0,0.00013471,2]
[399322282,1766302239783,-19142.96587987,0.00013482,2]
[399322283,1766302239792,-1884.0,0.00013489,2]
[399322284,1766302239802,-5000.0,0.000135,2]
[399322285,1766302239811,-1884.0,0.00013539,2]
[399322286,1766302239820,-1000.0,0.00013547,2]
[399322287,1766302239829,-500.0,0.00013562,2]
[399322288,1766302239838,-1884.0,0.00013602,2]
[399322289,1766302239847,-1884.0,0.00013675,2]
[399322290,1766302239856,-500.0,0.00013698,2]
[399322291,1766302239865,-500.0,0.00013698,2]
[399322292,1766302239874,-500.0,0.00013698,2]
[399322293,1766302239883,-200.0,0.00013699,2]
[399322294,1766302239892,-166.66,0.00013699,2]
[399322295,1766302239902,-1000.0,0.00013699,2]
[399322296,1766302239911,-151.0,0.00013699,2]
[399322297,1766302239920,-151.0,0.00013699,2]
[399322298,1766302239929,-212.61721,0.00013699,2]
[399322299,1766302239938,-151.0,0.00013699,2]
[399322300,1766302239947,-151.0,0.00013699,2]
[399322301,1766302239956,-151.0,0.00013699,2]
[399322302,1766302239966,-157.119013,0.00013699,2]
[399322303,1766302239975,-151.0,0.00013699,2]
[399322304,1766302239985,-151.0,0.00013699,2]
[399322305,1766302239995,-209.901131,0.00013699,2]
[399322306,1766302240003,-255.0,0.00013701,2]
[399322307,1766302240012,-803.88,0.00013702,2]
[399322308,1766302240022,-202.6395923,0.00013702,2]
[399322309,1766302240031,-595.37131296,0.00013702,2]
[399322310,1766302240041,-240.4064531,0.00013702,2]
[399322311,1766302240050,-1884.0,0.00013704,2]
[399322312,1766302240060,-151.0,0.00013704,2]
[399322313,1766302240069,-420.0,0.00013719,2]
[399322314,1766302240078,-420.0,0.00013719,2]
[399322315,1766302240088,-166.66,0.00013742,2]
[399322316,1766302240096,-1680.0,0.00013753,2]
[399322317,1766302240106,-1884.0,0.00013785,2]
[399322318,1766302240115,-500.0,0.00013814,2]
[399322319,1766302240125,-500.0,0.00013814,2]
[399322320,1766302240134,-500.0,0.00013814,2]
[399322321,1766302240143,-510.69307451,0.00013814,2]
[399322322,1766302240152,-500.0,0.00013814,2]
[399322323,1766302240162,-500.0,0.00013814,2]
[399322324,1766302240171,-500.0,0.00013814,2]
[399322325,1766302240180,-500.0,0.00013814,2]
[399322326,1766302240189,-330.65900624,0.00013814,2]
[399322327,1766302240198,-151.0,0.00013814,2]
[399322328,1766302240207,-151.0,0.00013814,2]
[399322329,1766302240217,-503.548566,0.00013814,2]
[399322330,1766302240226,-503.548566,0.00013814,2]
[399322331,1766302240235,-503.548566,0.00013814,2]
[399322332,1766302240245,-503.548566,0.00013814,2]
[399322333,1766302240254,-508.949884,0.00013814,2]
[399322334,1766302240264,-508.949884,0.00013814,2]
[399322335,1766302240274,-508.949884,0.00013814,2]
[399322336,1766302240283,-508.949884,0.00013814,2]
[399322337,1766302240293,-1884.0,0.00013819,2]
[399322338,1766302240302,-503.1158733,0.00013821,2]
[399322339,1766302240312,-332.57514163,0.00013821,2]
[399322340,1766302240322,-1000.0,0.00013821,2]
[399322341,1766302240332,-1000.0,0.00013821,2]
[399322342,1766302240342,-1000.0,0.00013821,2]
[399322344,1766302240351,-1000.0,0.00013821,2]
[399322345,1766302240360,-1000.0,0.00013821,2]
[399322346,1766302240370,-1000.0,0.00013821,2]
[399322347,1766302240380,-1000.0,0.00013821,2]
[399322348,1766302240390,-259.357152,0.00013821,2]
[399322349,1766302240400,-166.66,0.00013836,2]
[399322350,1766302240409,-1884.0,0.00013897,2]
[399322351,1766302240419,-19142.96587987,0.00013971,2]
[399322352,1766302240429,-166.66,0.00013973,2]
[399322353,1766302240439,-151.0,0.00013975,2]
[399322354,1766302240449,-277.35679052,0.00013975,2]
[399322355,1766302240458,-2349.0,0.00013975,2]
[399322356,1766302240468,-151.0,0.00013975,2]
[399322357,1766302240477,-311.1,0.00013975,2]
[399322358,1766302240486,-803.93,0.00013976,2]
[399322359,1766302240495,-166.66,0.0001411,2]
[399322360,1766302240504,-5093.58039381,0.00014116,2]
[399322361,1766302240513,-5000.0,0.00014116,2]
[399322362,1766302240522,-5000.0,0.00014116,2]
[399322363,1766302240531,-5000.0,0.00014116,2]
[399322364,1766302240541,-166.66,0.00014143,2]
[399322365,1766302240550,-151.0,0.00014149,2]
[399322366,1766302240559,-1884.0,0.00014149,2]
[399322367,1766302240569,-1884.0,0.00014165,2]
[399322368,1766302240579,-6397.9590015,0.00014166,2]
[399322369,1766302240587,-2571.1504395,0.00014166,2]
[399322370,1766302240596,-1884.0,0.00014176,2]
[399322371,1766302240605,-151.0,0.00014176,2]
[399322372,1766302240614,-151.0,0.00014176,2]
[399322373,1766302240624,-503.548566,0.00014176,2]
[399322374,1766302240633,-503.548566,0.00014176,2]
[399322375,1766302240642,-503.548566,0.00014176,2]
[399322376,1766302240651,-503.548572,0.00014176,2]
[399322377,1766302240661,-508.949884,0.00014176,2]
[399322378,1766302240670,-508.949884,0.00014176,2]
[399322379,1766302240679,-508.949884,0.00014176,2]
[399322380,1766302240688,-508.949894,0.00014176,2]
[399322381,1766302240697,-1884.0,0.00014191,2]
[399322382,1766302240707,-1884.0,0.00014226,2]
[399322383,1766302240716,-1884.0,0.00014228,2]
[399322384,1766302240725,-166.66,0.00014247,2]
[399322385,1766302240739,-617.40005154,0.0001425,2]
[399322386,1766302240748,-1884.0,0.00014278,2]
[399322387,1766302240757,-508.18199167,0.00014368,2]
[399322388,1766302240767,-1500.0,0.00014368,2]
[399322389,1766302240777,-1500.0,0.00014368,2]
[399322390,1766302240786,-1500.0,0.00014368,2]
[399322391,1766302240795,-1500.0,0.00014368,2]
[399322392,1766302240805,-1500.0,0.00014368,2]
[399322393,1766302240815,-1452.59736047,0.00014368,2]
[399322394,1766302240824,-166.66,0.00014384,2]
[399322395,1766302240834,-362.0,0.00014438,2]
[399322396,1766302240843,-45088.0036382,0.0001444,2]
[399322397,1766302240851,-1167.128659,0.0001444,2]
[399322398,1766302240861,-19142.96587987,0.00014459,2]
[399322399,1766302240871,-1884.0,0.00014481,2]
[399322400,1766302240882,-449.0,0.00014493,2]
[399322401,1766302240891,-2497.3207828,0.00014519,2]
[399322402,1766302240901,-1884.0,0.00014661,2]
[399322403,1766302240910,-1884.0,0.00014673,2]
[399322404,1766302240921,-1884.0,0.0001469,2]
[399322405,1766302240930,-1884.0,0.00014704,2]
[399322406,1766302240939,-174.04,0.00014719,2]
[399322407,1766302240948,-1884.0,0.00014732,2]
[399322408,1766302240958,-173.27,0.00014735,2]
[399322410,1766302240966,-176.7,0.00014741,2]
[399322411,1766302240976,-1884.0,0.00014748,2]
[399322413,1766302240984,-1884.0,0.00014754,2]
[399322414,1766302240993,-640.24385345,0.00014798,2]
[399322415,1766302241002,-10060.4934725,0.00014817,2]
[399322416,1766302241011,-260.4216046,0.00014817,2]
[399322417,1766302241019,-433.0,0.00014898,2]
[399322418,1766302241029,-557.2275862,0.00014913,2]
[399322419,1766302241038,-507.7506153,0.00014916,2]
[399322420,1766302241047,-554.53058718,0.00014916,2]
[399322421,1766302241056,-1008.91462185,0.00014916,2]
[399322422,1766302241065,-2000.0,0.00014916,2]
[399322423,1766302241074,-2000.0,0.00014916,2]
[399322424,1766302241084,-19142.96587987,0.00014947,2]
[399322425,1766302241094,-1026.5,0.00014957,2]
[399322426,1766302241104,-235.58592581,0.00014978,2]
[399322427,1766302241113,-7000.0,0.00015047,2]
[399322428,1766302241123,-587.0,0.00015052,2]
[399322429,1766302241132,-587.0,0.00015052,2]
[399322430,1766302241143,-1000.0,0.00015053,2]
[399322431,1766302241153,-151.0,0.00015068,2]
[399322432,1766302241162,-151.0,0.00015068,2]
[399322433,1766302241171,-151.0,0.00015068,2]
[399322434,1766302241181,-151.0,0.00015068,2]
[399322435,1766302241190,-151.0,0.00015068,2]
[399322436,1766302241199,-151.0,0.00015068,2]
[399322437,1766302241209,-151.0,0.00015068,2]
[399322438,1766302241218,-151.0,0.00015068,2]
[399322439,1766302241227,-151.0,0.00015068,2]
[399322440,1766302241236,-151.0,0.00015068,2]
[399322441,1766302241245,-151.0,0.00015068,2]
[399322442,1766302241255,-151.0,0.00015068,2]
[399322443,1766302241265,-151.0,0.00015068,2]
[399322444,1766302241274,-300.454223,0.00015068,2]
[399322445,1766302241283,-2351.0,0.00015129,2]
[399322446,1766302241292,-174.03907494,0.00015209,2]
[399322447,1766302241304,-173.27,0.00015221,2]
[399322448,1766302241314,-176.7,0.00015231,2]
[399322449,1766302241323,-500.0,0.00015251,2]
[399322450,1766302241333,-10000.0,0.00015256,2]
[399322451,1766302241342,-150.0,0.00015288,2]
[399322452,1766302241351,-150.0,0.00015288,2]
[399322453,1766302241360,-150.0,0.00015288,2]
[399322454,1766302241369,-150.0,0.00015288,2]
[399322455,1766302241378,-150.0,0.00015288,2]
[399322456,1766302241387,-150.34574057,0.00015288,2]
[399322457,1766302241396,-150.0,0.00015288,2]
[399322458,1766302241405,-151.28381653,0.00015288,2]
[399322459,1766302241414,-150.0,0.00015288,2]
[399322460,1766302241423,-150.0,0.00015288,2]
[399322461,1766302241432,-150.0,0.00015288,2]
[399322462,1766302241442,-150.0,0.00015288,2]
[399322463,1766302241451,-150.0,0.00015288,2]
[399322464,1766302241460,-150.0,0.00015288,2]
[399322465,1766302241470,-150.89972091,0.00015288,2]
[399322466,1766302241479,-150.34574057,0.00015305,2]
[399322467,1766302241488,-150.0,0.00015308,2]
[399322468,1766302241497,-150.0,0.00015314,2]
[399322469,1766302241506,-150.0,0.00015319,2]
[399322470,1766302241515,-150.0,0.00015322,2]
[399322471,1766302241524,-150.34574057,0.00015322,2]
[399322472,1766302241534,-150.0,0.00015324,2]
[399322473,1766302241543,-150.0,0.00015329,2]
[399322474,1766302241553,-150.34574057,0.00015339,2]
[399322475,1766302241563,-150.0,0.0001534,2]
[399322476,1766302241572,-151.51202885,0.00015344,2]
[399322477,1766302241581,-287.61899177,0.00015344,2]
[399322478,1766302241591,-2349.0,0.00015344,2]
[399322479,1766302241600,-151.0,0.00015344,2]
[399322480,1766302241609,-322.6107,0.00015344,2]
[399322481,1766302241618,-599.60298507,0.00015345,2]
[399322482,1766302241627,-642.94,0.00015345,2]
[399322483,1766302241637,-663.93287602,0.00015346,2]
[399322484,1766302241647,-150.0,0.00015349,2]
[399322485,1766302241656,-150.0,0.00015349,2]
[399322486,1766302241667,-150.0,0.00015356,2]
[399322487,1766302241676,-150.34574057,0.00015356,2]
[399322488,1766302241686,-150.0,0.0001536,2]
[399322489,1766302241695,-150.0,0.00015366,2]
[399322490,1766302241705,-150.0,0.0001537,2]
[399322491,1766302241716,-150.34574057,0.00015373,2]